[Event "10th Cherry Blossom Classic 2023"]
[Site "Dulles"]
[Date "2023.05.27"]
[Round "3.22"]
[White "Vinod, Aarush"]
[Black "Tahmassebi, Bijan"]
[Result "1/2-1/2"]
[ECO "C28"]
[WhiteElo "1914"]
[BlackElo "2201"]
[Annotator "TA"]
[PlyCount "103"]
[EventDate "2023.05.24"]
[EventType "swiss"]
[EventCountry "USA"]
[SourceTitle "playchess.com"]
[Source "ChessBase"]
[SourceQuality "1"]
[TimeControl "5400+30"]

{[%evp 11,103,0,16,0,0,-1,15,14,13,8,8,-11,0,-29,-10,-14,0,0,44,45,35,43,47,45,33,24,44,31,34,23,19,12,92,93,97,86,61,35,34,0,0,0,32,27,21,15,41,43,37,40,98,44,63,70,68,62,57,58,58,66,65,65,68,64,66,66,67,37,60,0,52,52,52,52,76,52,71,70,99,0,0,0,0,0,0,0,0,0,0,0,0,0,203,203]} 1. e4 {[%emt 0:00:44]} e5 {[%emt 0:00:04]} 2. Bc4 {[%emt 0:00:13]} Nf6 {[%emt 0:00:17]} 3. d3 {[%emt 0:00:11]} Nc6 {[%emt 0:00:15]} 4. Nc3 {[%emt 0:00:10]} Na5 {[%emt 0:00:11]} 5. Bb3 {[%emt 0:00:12]} Nxb3 {[%emt 0:01:05]} 6. axb3 {[%emt 0:00:17]} Bb4 {[%emt 0:00:09]} 7. Nf3 {[%emt 0:00:42] C28: Vienna Game: 2...Nf6 3 Bc4 Nc6.} d6 {[%emt 0:00:04][%cal Bd7d6,Bd6d5,Bd5d4][%mdl 32]} 8. h3 {[%emt 0:00:35]} c6 {[%emt 0:01:00]} 9. O-O {[%emt 0:01:30] The position is equal.} O-O {[%emt 0:00:15]} 10. Ne2 {[%emt 0:12:07] [#]} Re8 $146 {[%emt 0:02:44]} ({Predecessor:} 10... Ba5 11. Ng3 h6 12. Nh4 Bc7 13. Nhf5 d5 14. Qf3 Kh7 15. Nh5 g6 16. Nxf6+ Qxf6 {½-½ Nakamura,H (2736)-So,W (2770) Skilling op KO rapid 2020 (2.11)}) 11. Ng3 {[%emt 0:05:22]} d5 {[%emt 0:15:22]} 12. Qe2 {[%emt 0:03:06]} Qc7 {[%emt 0:00:52]} 13. Bd2 {[%emt 0:08:42]} Bxd2 {[%emt 0:06:06]} 14. Qxd2 {[%emt 0:01:29]} Nd7 {[%emt 0:05:53]} 15. Rfe1 {[%emt 0:15:30]} d4 {[%emt 0:05:42]} 16. c3 {[%emt 0:01:42]} c5 {[%emt 0:19:53]} 17. Rec1 {[%emt 0:03:37]} Qb6 {[%emt 0:01:12]} 18. b4 {[%emt 0:01:46]} f6 {[%emt 0:12:40]} (18... cxb4 {looks sharper.} 19. cxd4 exd4 20. Nf5 f6) 19. Qc2 {[%emt 0:05:46]} dxc3 {[%emt 0:02:56]} 20. bxc3 {[%emt 0:04:59]} cxb4 {[%emt 0:00:06]} 21. Qb3+ {[%emt 0:04:54]} Kf8 {[%emt 0:00:14]} (21... Kh8 $11 {remains equal.}) 22. cxb4 $16 {[%emt 0:01:31]} Nb8 {[%emt 0:02:36]} 23. b5 {[%emt 0:07:57] Prevents Nc6.} Be6 {[%emt 0:02:22]} 24. Qb4+ {[%emt 0:01:07]} Kg8 {[%emt 0:00:44][%cal Ob8a6]} 25. Qc5 {[%emt 0:03:00]} (25. Qc3 $5 {[%cal Rd3d4]}) 25... Qxc5 {[%emt 0:09:00]} 26. Rxc5 {[%emt 0:00:05]} Rc8 {[%emt 0:02:05] Prevents Rc7} 27. Rxc8+ {[%emt 0:16:46]} Bxc8 {[%emt 0:00:04]} 28. d4 $36 {[%emt 0:00:00][%mdl 2048] Black is under pressure.} Nd7 {[%emt 0:03:32]} 29. Nf5 {[%emt 0:00:00]} exd4 {[%emt 0:02:10]} 30. N3xd4 {[%emt 0:00:00]} Nb6 {[%emt 0:01:00]} ({Better is} 30... Nc5 $14) 31. Ne7+ {[%emt 0:00:00] A dynamic duo of knights.} (31. Nd6 $16) 31... Kf7 {[%emt 0:01:20]} 32. Nxc8 {[%emt 0:00:00]} Nxc8 $14 {[%emt 0:00:12][%mdl 4096] Endgame KRN-KRN} 33. Rc1 $1 {[%emt 0:00:00] Hoping for Rc7+.} a5 {[%emt 0:04:01]} 34. bxa6 $1 {[%emt 0:01:06]} bxa6 {[%emt 0:00:04]} 35. Rc7+ {[%emt 0:00:11]} Kg8 $1 {[%emt 0:00:16]} 36. Nf5 {[%emt 0:00:57][%cal Oc7c8] [#] Wards off Nd6. Rxc8+! would be deadly. White is much more active. The black rooks are badly placed.} a5 {[%emt 0:00:49]} 37. Rxg7+ {[%emt 0:01:06]} Kf8 {[%emt 0:01:11]} 38. Rxh7 {[%emt 0:01:19] Strongly threatening Rh8+.} a4 {[%emt 0:00:03]} 39. Rh8+ {[%emt 0:00:40]} Kf7 {[%emt 0:00:08] ...a3 is the strong threat.} 40. Rh7+ {[%emt 0:00:35]} ({White should play} 40. Nd6+ $14 Kg7 41. Rd8 (41. Rxc8 $2 Rxc8 42. Nxc8 a3 $19)) 40... Kg8 {[%emt 0:01:20]} (40... Kf8 $11) 41. Rb7 {[%emt 0:00:06]} a3 {[%emt 0:00:11] Prevents Rb2. Threatens to win with ...a2.} 42. Rb1 $1 {[%emt 0:00:05]} Nb6 {[%emt 0:00:43][%mdl 64] Promotion} 43. Ne3 {[%emt 0:01:02] Against Nc4} (43. Rxb6 $2 a2 44. Nh6+ (44. Rxf6 a1=Q+ 45. Kh2 Qxf6 $19) 44... Kg7 $19) 43... Na4 {[%emt 0:00:25]} 44. Nd5 {[%emt 0:00:50]} Nc5 {[%emt 0:00:41] [#] aiming for ...a2.} 45. Ra1 {[%emt 0:01:03]} (45. Nxf6+ $2 Kf7 46. Nd5 a2 $19) (45. Nc3 $1 $16) 45... Nb3 $11 {[%emt 0:00:30]} 46. Ra2 {[%emt 0:00:00][%cal Od5b6]} (46. Nxf6+ $2 Kf7 $19) 46... Nc1 $1 {[%emt 0:00:05]} 47. Ra1 {[%emt 0:00:27]} (47. Nxf6+ $2 Kf7 48. Ra1 Nb3 $19) 47... Nb3 {[%emt 0:00:50]} 48. Ra2 {[%emt 0:01:03][%cal Od5b6]} (48. Nxf6+ $2 {too greedy.} Kf7 $19) 48... Nc1 $1 {[%emt 0:00:04]} 49. Ra1 {[%emt 0:00:00]} (49. Nxf6+ $2 Kf7 $19) 49... Nb3 {[%emt 0:01:34]} 50. Ra2 {[%cal Od5c3]} (50. Nxf6+ $2 Kf7 $19) 50... Nc1 $1 51. Rc2 (51. Nxf6+ $2 Kf7 52. Rc2 (52. Ra1 $2 Nb3 $19) 52... a2 $19) 51... a2 $2 {[%emt 0:01:00]} (51... Nd3 $11 {and Black has nothing to worry.} 52. Ra2 (52. Nxf6+ $2 {perishes.} Kg7 $19) 52... Nc1) 52. Rxc1 {[%emt 0:00:56] Weighted Error Value: White=0.10 (very precise) /Black=0.18 (very precise)} 1/2-1/2

[Event "10th Cherry Blossom Classic 2023"]
[Site "Dulles"]
[Date "2023.05.27"]
[Round "3.23"]
[White "Hu, Merric"]
[Black "Michelle Catherina, P."]
[Result "0-1"]
[ECO "B31"]
[WhiteElo "2022"]
[BlackElo "2193"]
[Annotator "TA"]
[PlyCount "66"]
[EventDate "2023.05.24"]
[EventType "swiss"]
[EventCountry "USA"]
[SourceTitle "playchess.com"]
[Source "ChessBase"]
[SourceQuality "1"]
[TimeControl "5400+30"]

{[%evp 9,66,25,33,-16,-16,-16,-9,-14,-10,-13,14,0,0,0,0,0,0,0,0,0,0,0,47,39,64,47,63,23,36,0,0,-25,0,0,0,0,72,-36,-37,-41,-47,-249,-265,-562,-556,-555,-554,-555,-545,-587,-265,-225,-187,-273,-270,-1737,-1745,-1750,-1741]} 1. e4 {[%emt 0:00:03]} c5 {[%emt 0:05:43]} 2. Nf3 {[%emt 0:00:16]} Nc6 {[%emt 0:00:07]} 3. Bb5 {[%emt 0:02:22]} g6 {[%emt 0:01:13]} 4. Bxc6 {[%emt 0:00:12]} dxc6 {[%emt 0:00:12]} 5. O-O {[%emt 0:00:37]} Bg7 {[%emt 0:00:19]} 6. c3 {[%emt 0:04:34] B31: Sicilian: 2...Nc6 3 Bb5 g6.} (6. a4 $14) 6... Qd3 $11 {[%emt 0:05:25]} 7. Re1 {[%emt 0:01:16]} e5 {[%emt 0:02:50] [#]} 8. h3 $146 {[%emt 0:01:10] The position is equal.} ({Predecessor:} 8. Na3 Ne7 9. b4 cxb4 10. cxb4 Bg4 11. Re3 Qd4 12. Rb1 b5 13. h3 Bxf3 14. Qxf3 f5 {½-½ Henderson,S (1895)-Wosch,A (2311) Champion's League 12/C5 email 2012 [3]}) 8... Ne7 {[%emt 0:03:14]} 9. a4 {[%emt 0:05:23]} h6 {[%emt 0:02:43]} 10. Na3 {[%emt 0:05:21]} Be6 {[%emt 0:01:50]} 11. Re3 {[%emt 0:05:50]} Qd7 {[%emt 0:02:09]} 12. b4 {[%emt 0:02:03]} cxb4 {[%emt 0:08:19]} 13. cxb4 {[%emt 0:00:05]} g5 {[%emt 0:00:26]} 14. Bb2 {[%emt 0:03:15]} Ng6 {[%emt 0:03:57]} 15. Qc2 {[%emt 0:11:59][%cal Od2d4]} g4 {[%emt 0:12:00]} (15... O-O $11) 16. hxg4 $14 {[%emt 0:00:35][%cal Od2d4]} Bxg4 {[%emt 0:00:14]} 17. Nc4 {[%emt 0:05:12][%cal Rf3e5]} Qc7 {[%emt 0:02:14]} 18. Rc1 {[%emt 0:09:15]} (18. d4 $5) 18... O-O {[%emt 0:04:10]} 19. Qb1 {[%emt 0:05:45]} Rfe8 {[%emt 0:07:27]} 20. Qa1 {[%emt 0:08:01]} Qe7 {[%emt 0:07:12][%cal Oh6h5]} 21. b5 {[%emt 0:01:04]} cxb5 {[%emt 0:05:08]} 22. axb5 {[%emt 0:00:02]} Qe6 {[%emt 0:00:41]} (22... Rac8 $11 {keeps the balance.}) 23. Nh2 {[%emt 0:07:10]} (23. d4 $16) 23... a6 $15 {[%emt 0:05:27]} 24. b6 {[%emt 0:01:30]} Rac8 {[%emt 0:07:21]} 25. Qa2 $2 {[%emt 0:20:00] Now White is beyond hope.} (25. d3 $15) 25... Nf4 $19 {[%emt 0:01:50]} 26. f3 $2 {[%emt 0:00:00] [#]} (26. Qb1) 26... Bh3 $1 {[%emt 0:02:32][%mdl 512]} 27. g3 {[%emt 0:00:00]} Qg6 {[%emt 0:01:04]} 28. Kf2 {[%emt 0:00:00] [#]} Red8 $1 {[%emt 0:01:27][%cal Oc8c4] White must now prevent ...Rxc4!} 29. Bxe5 {[%emt 0:00:00]} (29. Ba1 Qh5) 29... Nd3+ {[%emt 0:03:13]} (29... Rxc4 $142 30. Qxc4 Bxe5) 30. Rxd3 {[%emt 0:00:00]} Rxd3 {[%emt 0:00:02]} 31. Bc7 {[%emt 0:00:00]} (31. g4 $142) 31... Be6 {[%emt 0:01:21] aiming for ...Qh5. This pair of bishops is nice.} 32. Nf1 $2 {[%emt 0:00:13]} (32. Qa5) 32... Qh5 {[%emt 0:00:46]} 33. g4 {[%emt 0:00:30]} Qh1 {[%emt 0:01:10] Weighted Error Value: White=0.53/Black=0.22 (precise)} 0-1

[Event "10th Cherry Blossom Classic 2023"]
[Site "Dulles"]
[Date "2023.05.27"]
[Round "3.24"]
[White "Altman, Joshua"]
[Black "Martin, Sam B"]
[Result "1-0"]
[ECO "D31"]
[WhiteElo "2120"]
[BlackElo "2067"]
[Annotator "TA"]
[PlyCount "81"]
[EventDate "2023.05.24"]
[EventType "swiss"]
[EventCountry "USA"]
[SourceTitle "playchess.com"]
[Source "ChessBase"]
[SourceQuality "1"]
[TimeControl "5400+30"]

{[%evp 10,81,7,12,39,0,27,26,27,27,26,26,22,11,31,33,39,36,46,22,37,37,30,30,47,46,65,51,83,83,90,82,65,54,53,39,32,42,69,34,62,70,108,49,52,43,85,27,102,102,100,108,89,89,141,139,151,148,330,373,354,344,351,312,591,586,550,283,5402,436,403,312,1559,1559]} 1. d4 {[%emt 0:00:03]} d5 {[%emt 0:00:17]} 2. c4 {[%emt 0:00:03]} e6 {[%emt 0:00:05]} 3. Nc3 {[%emt 0:00:03]} c6 {[%emt 0:00:09]} 4. cxd5 {[%emt 0:00:30]} exd5 {[%emt 0:00:03]} 5. Nf3 {[%emt 0:00:27]} Bd6 {[%emt 0:00:08]} 6. Bg5 {[%emt 0:10:04]} Qb6 {[%emt 0:00:54] D31: Queen's Gambit Declined: Semi-Slav without ...Nf6 (+ Marshall Gambit and Noteboom) and Exchange Variation lines without ...Nf6.} 7. Qd2 {[%emt 0:02:29]} f6 {[%emt 0:00:54]} 8. Bh4 {[%emt 0:00:39]} Ne7 {[%emt 0:00:02] White has an edge.} 9. e3 {[%emt 0:02:04]} Bf5 {[%emt 0:09:59]} 10. Be2 {[%emt 0:01:42]} Nd7 {[%emt 0:00:52] [#]} 11. Rc1 $146 {[%emt 0:02:55]} ({Predecessor:} 11. O-O Kf7 12. Ne1 Rae8 13. Nd3 Nc8 14. g4 Bg6 15. f4 Bxd3 16. Bxd3 {0-1 Scantland,P (1711)-Szalay,K (2098) Quebec-ch qual 2008 (2)}) 11... Rd8 {[%emt 0:11:53]} 12. Bg3 {[%emt 0:08:25]} Bxg3 {[%emt 0:10:51]} 13. hxg3 {[%emt 0:00:01]} O-O {[%emt 0:04:40]} 14. O-O {[%emt 0:06:37]} h6 {[%emt 0:02:02]} 15. Na4 {[%emt 0:05:58]} Qc7 {[%emt 0:01:23]} 16. b4 {[%emt 0:02:36][%cal Bb2b4,Bb4c5][%mdl 32]} a6 {[%emt 0:05:01]} 17. Nc5 {[%emt 0:02:54]} Nxc5 {[%emt 0:16:41]} 18. bxc5 {[%emt 0:01:41]} Rfe8 {[%emt 0:00:09]} 19. Bd3 {[%emt 0:08:55]} Bc8 {[%emt 0:00:02]} 20. Rb1 {[%emt 0:05:45] Black is weak on the dark squares} g5 {[%emt 0:01:19]} 21. e4 {[%emt 0:10:54]} dxe4 {[%emt 0:00:22]} 22. Bxe4 {[%emt 0:00:09]} Kg7 {[%emt 0:01:39]} 23. Rfe1 {[%emt 0:03:00]} Qd7 {[%emt 0:06:41]} 24. Rbd1 {[%emt 0:06:00] White is much more active.} (24. Bc2 {feels hotter.} Nf5 25. Rxe8 Rxe8 26. g4) 24... Ng6 {[%emt 0:03:55]} 25. Qc3 {[%emt 0:11:44]} (25. Bxg6 Kxg6 26. Qb4 (26. Rxe8 Rxe8 27. Qc3 Qd5 $11) 26... h5 $11) 25... Qf7 {[%emt 0:01:12] [#]} 26. Bc2 {[%emt 0:03:01]} (26. Nd2 $1 $16) 26... Be6 {[%emt 0:01:31]} 27. a3 {[%emt 0:02:48]} Re7 {[%emt 0:00:46]} 28. Qd3 {[%emt 0:02:20]} ({Better is} 28. Nd2 $16) 28... Nf8 {[%emt 0:00:22]} (28... Rde8 $11) 29. Nd2 $16 {[%emt 0:00:37][%cal Bf3d2,Bd2f1,Bf1e3,Be3f5,Bf5d6][%mdl 32]} Bd5 {[%emt 0:09:33]} 30. Rxe7 {[%emt 0:00:20]} Qxe7 {[%emt 0:00:01]} 31. Nf1 {[%emt 0:00:19]} Qd7 {[%emt 0:01:44] Repels g4} (31... Qf7 $142) 32. Ne3 {[%emt 0:00:19]} Be6 {[%emt 0:00:02]} 33. Bb3 {[%emt 0:00:46]} Qc7 $2 {[%emt 0:02:41] Black cannot hold the game after this.} (33... Kh8 $16 34. Qc3 Bxb3 35. Qxb3 Ne6) 34. Bxe6 $18 {[%emt 0:00:11]} Nxe6 {[%emt 0:00:01]} 35. Nf5+ {[%emt 0:00:11]} Kf8 {[%emt 0:00:23]} 36. Re1 {[%emt 0:01:13]} (36. Nxh6 Rxd4 37. Qf3 Rxd1+ 38. Qxd1 Qe7 $11) 36... Qd7 {[%emt 0:03:58]} (36... Ng7 37. Nxh6 Re8) 37. Nd6 {[%emt 0:00:35] Qf5 would be deadly.} (37. Nxh6 Nxd4 38. Qg6 Qg7 $16) 37... Kg7 {[%emt 0:00:36]} 38. Qc4 {[%emt 0:00:35]} Nf8 {[%emt 0:00:23] [#]} (38... Nc7 39. Re7+ {[%mdl 64] Decoy} (39. Nxb7 Re8 $18) 39... Qxe7 40. Nf5+ (40. Nxb7 $2 {too greedy.} Qe1+ 41. Qf1 Qxf1+ 42. Kxf1 Rxd4 $19) 40... Kf8 41. Nxe7 Kxe7) 39. g4 $1 {[%emt 0:00:27][%mdl 512]} Ng6 {[%emt 0:01:30]} 40. Nf5+ {[%emt 0:00:15]} Kh7 $2 {[%emt 0:00:21] [#]} (40... Kh8 41. g3 (41. Nxh6 Qd5 $16) 41... Re8) 41. Re7+ $3 {[%emt 0:00:15][%mdl 576] Skewer, Double Attack. An entertaining game by Altman.   Weighted Error Value: White=0.37/Black=0.31} 1-0

[Event "10th Cherry Blossom Classic 2023"]
[Site "Dulles"]
[Date "2023.05.27"]
[Round "4.1"]
[White "Druska, Juraj"]
[Black "Nyzhnyk, Illya"]
[Result "1/2-1/2"]
[ECO "D50"]
[WhiteElo "2496"]
[BlackElo "2644"]
[Annotator "TA"]
[PlyCount "31"]
[EventDate "2023.05.24"]
[EventType "swiss"]
[EventCountry "USA"]
[SourceTitle "playchess.com"]
[Source "ChessBase"]
[SourceQuality "1"]
[TimeControl "5400+30"]

{[%evp 9,31,21,37,31,34,33,15,12,16,13,8,16,8,5,22,7,7,0,16,25,18,16,23,19]} 1. d4 {[%emt 0:05:01]} Nf6 {[%emt 0:00:19]} 2. c4 {[%emt 0:00:15]} e6 {[%emt 0:00:04]} 3. Nc3 {[%emt 0:01:15]} d5 {[%emt 0:00:05]} 4. Bg5 {[%emt 0:00:27]} Bb4 {[%emt 0:00:26]} 5. e3 {[%emt 0:02:07]} h6 {[%emt 0:00:48]} 6. Bxf6 {[%emt 0:01:59] D50: Queen's Gambit Declined: Dutch-Peruvian Gambit.} Qxf6 {[%emt 0:00:05]} 7. Qb3 {[%emt 0:06:25]} Bxc3+ {[%emt 0:10:43]} 8. bxc3 {[%emt 0:01:14] The position is equal.} dxc4 {[%emt 0:00:16]} 9. Bxc4 {[%emt 0:01:15]} O-O {[%emt 0:00:09]} 10. Nf3 {[%emt 0:02:20]} b6 {[%emt 0:00:06]} 11. O-O {[%emt 0:07:46]} Nc6 {[%emt 0:08:22] [#]} 12. Bd3 $146 {[%emt 0:10:29]} ({Predecessor:} 12. Bb5 Bb7 13. Bxc6 Bxc6 14. Ne5 Bb7 15. a4 a5 16. f3 Qe7 17. e4 Rfd8 18. Rfd1 {0-1 Kukhmazov,A (2506)-Annaberdiev,M (2495) Titled Tuesday intern op 11th Apr Early blitz 2023 (4)}) 12... Bb7 {[%emt 0:00:05]} 13. Qc2 {[%emt 0:02:13]} Rfd8 {[%emt 0:00:16]} 14. Bh7+ {[%emt 0:00:56]} Kh8 {[%emt 0:01:18] [#] Threatens to win with ...g6.} 15. Be4 {[%emt 0:00:05][%cal Of3e5]} Rab8 {[%emt 0:02:16]} 16. Rab1 {[%emt 0:13:43] Weighted Error Value: White=0.02 (flawless) /Black=0.03 (flawless)} 1/2-1/2

[Event "10th Cherry Blossom Classic 2023"]
[Site "Dulles"]
[Date "2023.05.27"]
[Round "4.2"]
[White "Hilby, Craig"]
[Black "Durarbayli, Vasif"]
[Result "1/2-1/2"]
[ECO "C58"]
[WhiteElo "2401"]
[BlackElo "2627"]
[Annotator "TA"]
[PlyCount "82"]
[EventDate "2023.05.24"]
[EventType "swiss"]
[EventCountry "USA"]
[SourceTitle "playchess.com"]
[Source "ChessBase"]
[SourceQuality "1"]
[TimeControl "5400+30"]

{[%evp 14,82,27,26,27,20,17,0,0,0,21,20,14,20,14,13,31,16,1,6,4,8,14,-9,43,19,46,0,46,39,45,48,51,0,0,0,0,7,20,0,5,-61,-56,-52,-61,-127,-105,-184,-193,-332,-331,-379,-276,-277,0,0,0,-7,0,0,0,0,0,0,0,0,0,0,0,0,0]} 1. e4 {[%emt 0:05:45]} e5 {[%emt 0:00:21]} 2. Nf3 {[%emt 0:00:07]} Nc6 {[%emt 0:00:04]} 3. Bc4 {[%emt 0:00:08]} Nf6 {[%emt 0:00:20]} 4. Ng5 {[%emt 0:00:28]} d5 {[%emt 0:00:16]} 5. exd5 {[%emt 0:00:14]} Na5 {[%emt 0:00:37]} 6. Bb5+ {[%emt 0:00:11]} c6 {[%emt 0:00:06]} 7. dxc6 {[%emt 0:00:09]} bxc6 {[%emt 0:00:05]} 8. Bd3 {[%emt 0:00:26]} (8. Qf3 {with more complications.} Be7 9. Bd3 O-O 10. Nc3) 8... Nd5 {[%emt 0:01:49] Prevents Nc3. C58: Two Knights: 4 Ng5 d5 5 exd5 Na5 sidelines.} 9. Nf3 {[%emt 0:00:26]} (9. Qh5 g6 10. Nxf7 gxh5 $17) 9... Bd6 {[%emt 0:00:39]} 10. Nc3 {[%emt 0:00:40]} O-O {[%emt 0:05:16]} 11. Be2 {[%emt 0:00:59]} f5 {[%emt 0:00:57]} 12. d3 {[%emt 0:01:15]} Qc7 {[%emt 0:00:26] [#]} 13. Bd2 $146 {[%emt 0:05:50]} ({Predecessor:} 13. Nd2 Nf4 14. O-O Nxe2+ 15. Qxe2 Ba6 16. Qh5 c5 17. b3 Nc6 18. Nc4 Nd4 19. Be3 Nxc2 {½-½ Ivanov,O (2441)-Triapishko,A (2510) Moscow op-A 16th 2020 (4)}) 13... Rb8 {[%emt 0:02:03]} 14. b3 {[%emt 0:14:05]} Nf6 {[%emt 0:01:59]} 15. g3 {[%emt 0:13:24]} c5 {[%emt 0:06:24]} 16. O-O {[%emt 0:16:02]} Nc6 {[%emt 0:03:34]} 17. Bg5 {[%emt 0:11:42]} Qd7 {[%emt 0:04:12]} 18. Re1 {[%emt 0:01:49]} Ne8 {[%emt 0:06:26]} (18... Nd4 $11) 19. Bd2 {[%emt 0:03:46]} Bb7 {[%emt 0:11:06]} 20. Bf1 {[%emt 0:02:30]} (20. Nb5 $14) 20... Nc7 {[%emt 0:07:16]} (20... Nd4 $11 21. Bg2 (21. Nxe5 $2 Bxe5 22. Bg2 Bxg2 $19) 21... Nf6) 21. Bg2 $14 {[%emt 0:00:42]} Rbe8 {[%emt 0:00:03]} 22. Na4 {[%emt 0:04:55]} Ne6 {[%emt 0:03:39]} 23. c4 {[%emt 0:01:40]} ({White should play} 23. c3 $1 $14) 23... Ncd4 {[%emt 0:02:41]} 24. Nc3 {[%emt 0:02:20]} Nxf3+ {[%emt 0:04:23]} 25. Bxf3 {[%emt 0:00:02]} Nd4 {[%emt 0:00:04]} 26. Nd5 {[%emt 0:03:48]} e4 {[%emt 0:04:27]} 27. Bg2 {[%emt 0:02:50]} (27. dxe4 $11 Nxf3+ 28. Qxf3) 27... Bxd5 $1 $15 {[%emt 0:00:21]} 28. cxd5 {[%emt 0:00:10]} exd3 {[%emt 0:00:08]} 29. Rxe8 {[%emt 0:04:58]} ({Better is} 29. Be3 $1 $15 Nc2 30. Qxd3 Nxa1 31. Rxa1) 29... Rxe8 $17 {[%emt 0:00:06]} 30. Kh1 {[%emt 0:00:34] [#]} (30. Bf1 $17) 30... f4 $1 $19 {[%emt 0:01:56]} 31. Bc3 {[%emt 0:01:18]} (31. Bxf4 $142 Bxf4 32. Qxd3) 31... Ne2 {[%emt 0:01:08]} 32. Bb2 {[%emt 0:01:33] White is weak on the dark squares} Qf5 {[%emt 0:02:26][%cal Rf4g3] Threatens to win with ...fxg3.} 33. g4 {[%emt 0:00:43] [#]} Qxg4 {[%emt 0:03:46]} (33... Qg6 $1 $19 {( -> ...f3)} 34. Bf3 Be5 35. Bxe5 Rxe5) 34. Qxd3 $11 {[%emt 0:00:03] The position is equal.} Qh4 {[%emt 0:00:08]} (34... Re3 $5 35. Qc4 $8 (35. fxe3 $2 f3 $19) 35... Qh5 36. fxe3 f3 $11) 35. Qh3 $132 {[%emt 0:00:36][%mdl 2048] White has counterplay} Qxf2 {[%emt 0:06:59][%cal Oe2g3] Strongly threatening ...Ng3+!} 36. Qd7 {[%emt 0:00:07][%csl Gb2,LRa7,LRd6,LRe8,LRg7][%cal Rd7g7] Chess con chili.} Ng3+ {[%emt 0:00:33][%mdl 64] Discovered Attack} 37. hxg3 {[%emt 0:00:02][%csl Gb2][%cal Rd7g7]} Re1+ {[%emt 0:00:02]} 38. Rxe1 {[%emt 0:00:07]} Qxe1+ {[%emt 0:00:03]} 39. Kh2 {[%emt 0:00:04][%csl Gb2][%cal Rd7g7]} Qxg3+ {[%emt 0:00:10]} 40. Kg1 {[%emt 0:00:42] Black must now prevent Qe6+.} Qe3+ {[%emt 0:00:48]} 41. Kh1 {[%emt 0:00:56][%csl Gb2][%cal Rd7g7]} (41. Kf1 $5 Qd3+ $8 42. Kf2 (42. Kg1 Qe3+ 43. Kh2 Qg3+ 44. Kh1 Qe1+ 45. Kh2 Qg3+ $11) 42... Qd2+ 43. Kg1 Qe3+ 44. Kh2 (44. Kf1 Qd3+ 45. Kg1 Qe3+ $11) 44... Qg3+ 45. Kh1 (45. Kg1 Qe3+ $11) 45... Qe1+ 46. Kh2 Qg3+ $11) 41... Qe1+ {[%emt 0:00:15] An exciting game.   Weighted Error Value: White=0.24 (precise) /Black=0.22 (precise)} 1/2-1/2